lending/lending_fUSD_20250501
["ID","MTS","AMOUNT","RATE_DAILY","PERIOD"]
[359553232,1746114449795,1000.0,0.00019273,2]
[359553233,1746114497949,500.0,0.0003287,60]
[359553234,1746114524370,1465.92,0.00017304,2]
[359553242,1746114594457,401.61452519,0.00019224,2]
[359553243,1746114618284,1210.82447333,0.00032876,60]
[359553252,1746114631715,-300.0,0.0001932,2]
[359553253,1746114631725,-1200.0,0.0001932,2]
[359553254,1746114631734,-300.0,0.0001932,2]
[359553255,1746114631744,-252.0,0.0001932,2]
[359553256,1746114631754,-200.0,0.00019321,2]
[359553257,1746114631764,-193.75038882,0.00019321,2]
[359553258,1746114631776,-279.19538974,0.00019321,2]
[359553259,1746114631788,-298.08372487,0.00019321,2]
[359553260,1746114631800,-749.2210027,0.00019321,2]
[359553261,1746114631811,-19358.2830299,0.00019321,2]
[359553262,1746114631820,-314.02,0.00019323,2]
[359553263,1746114631830,-200.0,0.00019359,2]
[359553264,1746114631839,-1003.9,0.00019412,2]
[359553265,1746114631848,-157.54,0.00019427,2]
[359553266,1746114631857,-401.61452517,0.00019512,2]
[359553267,1746114631867,-1465.92,0.00019568,2]
[359553268,1746114631877,-2849.22,0.0001964,2]
[359553269,1746114631887,-1764.0,0.000197,2]
[359553270,1746114631896,-250.0,0.00019733,2]
[359553271,1746114631906,-226.2375,0.000198,2]
[359553272,1746114631915,-2912.70750277,0.000198,2]
[359553273,1746114631924,-401.61452517,0.000198,2]
[359553275,1746114631934,-740.20330167,0.00019806,2]
[359553277,1746114631944,-850.0,0.00019898,2]
[359553279,1746114631954,-2646.311,0.00019899,2]
[359553281,1746114631964,-500.0,0.00019899,2]
[359553283,1746114631974,-500.0,0.00019899,2]
[359553285,1746114631983,-500.0,0.00019899,2]
[359553286,1746114631992,-500.0,0.00019899,2]
[359553287,1746114632001,-500.0,0.00019899,2]
[359553288,1746114632011,-500.0,0.00019899,2]
[359553290,1746114632021,-500.0,0.00019899,2]
[359553292,1746114632031,-500.0,0.00019899,2]
[359553293,1746114632040,-500.0,0.00019899,2]
[359553295,1746114632050,-553.99458246,0.00019899,2]
[359553297,1746114632059,-500.0,0.00019899,2]
[359553299,1746114632068,-500.0,0.00019899,2]
[359553301,1746114632077,-500.0,0.00019899,2]
[359553303,1746114632087,-500.0,0.00019899,2]
[359553305,1746114632096,-500.0,0.00019899,2]
[359553308,1746114632106,-500.0,0.00019899,2]
[359553309,1746114632115,-500.0,0.00019899,2]
[359553311,1746114632125,-500.0,0.00019899,2]
[359553313,1746114632134,-12961.55915809,0.000199,2]
[359553316,1746114632145,-450.0,0.000199,2]
[359553318,1746114632157,-764.03114191,0.000199,2]
[359553320,1746114632165,-1.91970209,0.000199,2]
[359553323,1746114632192,-283.98310435,0.000199,2]
[359553325,1746114632205,-302.0,0.000199,2]
[359553328,1746114632223,-1854.9,0.000199,2]
[359553330,1746114632245,-1733.14156769,0.000199,2]
[359553332,1746114632267,-1038.80172587,0.000199,2]
[359553334,1746114632286,-1000.0,0.000199,2]
[359553336,1746114632295,-2185.4044,0.000199,2]
[359553338,1746114632306,-12130.7314,0.000199,2]
[359553339,1746114632315,-6307.4376,0.000199,2]
[359553342,1746114632325,-76302.2181,0.000199,2]
[359553343,1746114632335,-472.75341258,0.000199,2]
[359553346,1746114632345,-196.84667964,0.000199,2]
[359553347,1746114632355,-581.75497011,0.000199,2]
[359553350,1746114632365,-317.02626764,0.000199,2]
[359553351,1746114632375,-2182.39478211,0.000199,2]
[359553353,1746114632384,-2500.0,0.000199,2]
[359553355,1746114632394,-4835.43333842,0.000199,2]
[359553358,1746114632404,-268.63756423,0.000199,2]
[359553359,1746114632413,-207.4,0.00019953,2]
[359553361,1746114632423,-151.0,0.00019954,2]
[359553363,1746114632431,-187.85950421,0.00019954,2]
[359553366,1746114632442,-668.65185757,0.00019954,2]
[359553368,1746114632452,-250.0,0.00019973,2]
[359553370,1746114632461,-153.3206912,0.00019973,2]
[359553372,1746114632471,-1460.25,0.0001999,2]
[359553373,1746114632480,-1460.25,0.0001999,2]
[359553376,1746114632490,-168.91563715,0.0001999,2]
[359553377,1746114632500,-341.80214192,0.00019999,2]
[359553379,1746114632511,-500.0,0.00019999,2]
[359553381,1746114632521,-500.0,0.00019999,2]
[359553383,1746114632530,-500.0,0.00019999,2]
[359553385,1746114632540,-481.60233293,0.00019999,2]
[359553387,1746114632550,-191.97373943,0.00019999,2]
[359553389,1746114632559,-627.0,0.0002,2]
[359553391,1746114632568,-100346.96672699,0.0002,2]
[359553415,1746114637444,-443.61,0.0001999,2]
[359553416,1746114637454,-443.61,0.0001999,2]
[359553417,1746114637464,-68.78,0.0001999,2]
[359553418,1746114637534,-374.83,0.0001999,2]
[359553419,1746114637544,-443.61,0.0001999,2]
[359553420,1746114637554,-443.61,0.0001999,2]
[359553421,1746114637563,-443.61,0.0001999,2]
[359553422,1746114637573,-443.61,0.0001999,2]
[359553423,1746114637582,-233261.47001524,0.0002,2]
[359553424,1746114637594,-2031.19016154,0.0002,2]
[359553425,1746114637606,-277.595,0.0002,2]
[359553426,1746114637617,-895.89499998,0.0002,2]
[359553427,1746114637628,-396.29552,0.0002,2]
[359553428,1746114637639,-1001.0,0.0002,2]
[359553429,1746114637651,-9176.16736768,0.0002,2]
[359553430,1746114637662,-1731.16,0.0002,2]
[359553431,1746114637724,-567.82955877,0.0002,2]
[359553432,1746114637745,-1563.46598488,0.0002,2]
[359553433,1746114637756,-1269.25,0.0002,2]
[359553434,1746114637768,-334.26617053,0.0002,2]
[359553435,1746114637788,-1285.48705658,0.0002,2]
[359553436,1746114637801,-584.78514729,0.0002,2]
[359553448,1746114640123,-443.61,0.0001999,2]
[359553449,1746114640132,-443.61,0.0001999,2]
[359553450,1746114640141,-443.61,0.0001999,2]
[359553451,1746114640151,-569.0,0.0002,2]
[359553452,1746114640161,-220282.0985562,0.0002,2]
[359553453,1746114640172,-547.0,0.0002,2]
[359553454,1746114640183,-2910.02301602,0.0002,2]
[359553455,1746114640206,-327.179705,0.0002,2]
[359553456,1746114640218,-4452.49717128,0.0002,2]
[359553457,1746114640229,-764.8,0.0002,2]
[359553458,1746114640293,-1729.85740307,0.0002,2]
[359553459,1746114640306,-23934.05765095,0.0002,2]
[359553460,1746114640318,-145635.0,0.0002,2]
[359553478,1746114643272,-1912.00908923,0.0002,2]
[359553480,1746114643284,-39660.03882731,0.0002,2]
[359553486,1746114643552,-9743.96154662,0.0002,2]
[359553487,1746114643564,-4524.92489908,0.0002,2]
[359553488,1746114643664,-302.0,0.0002,2]
[359553495,1746114645463,-514.0,0.0002,2]
[359553496,1746114645473,-27864.77064286,0.0002,2]
[359553497,1746114645486,-3303.64415074,0.0002,2]
[359553498,1746114645540,-2034.42976274,0.0002,2]
[359553499,1746114645625,-1144.90002,0.0002,2]
[359553500,1746114645721,-3103.216,0.0002,2]
[359553501,1746114645732,-268.71252039,0.0002,2]
[359553502,1746114645743,-1940.0,0.0002,2]
[359553503,1746114645758,-1227.57,0.0002,2]
[359553504,1746114645771,-4104.28265254,0.0002,2]
[359553511,1746115178235,443.56,0.00019299,2]
[359553512,1746115195676,150.0,0.00019203,20]
[359553513,1746115219707,12417.0,0.00029971,30]
[359553514,1746115291033,260.71,0.00019292,2]
[359553515,1746115314579,640.0,0.00019288,2]
[359553516,1746115315715,640.0,0.00026521,120]
[359553517,1746115315962,640.0,0.00028932,120]
[359553518,1746115334476,216.15,0.00019236,2]
[359553519,1746115393671,2296.0,0.00025,90]
[359553520,1746115400038,219.87,0.00027425,30]
[359553521,1746115435618,23900.0,0.00019273,2]
[359553522,1746115473164,-150.0,0.00019396,2]
[359553523,1746115473188,-200.0,0.00019403,2]
[359553524,1746115473210,-250.0,0.00019411,2]
[359553525,1746115473233,-407.18495733,0.00019425,2]
[359553526,1746115473254,-200.0,0.00019441,2]
[359553527,1746115473276,-250.0,0.00019524,2]
[359553528,1746115473306,-500.0,0.00019524,2]
[359553529,1746115473329,-3042.81504267,0.00019525,2]
[359553530,1746115483934,-2000.0,0.00019525,2]
[359553531,1746115490127,-2000.0,0.00019525,2]
[359553532,1746115501304,1200.0,0.00019524,2]
[359553533,1746115501795,300.0,0.00019524,2]
[359553534,1746115505284,-2000.0,0.00019525,2]
[359553535,1746115534495,500.0,0.00019524,2]
[359553536,1746115535512,-2000.0,0.00019525,2]
[359553537,1746115554746,-500.0,0.00019524,2]
[359553538,1746115554771,-1500.0,0.00019525,2]
[359553539,1746115562126,-300.0,0.00019524,2]
[359553540,1746115562356,250.0,0.00019524,2]
[359553541,1746115577511,1450.0,0.00019461,2]
[359553542,1746115577532,2000.0,0.00019461,2]
[359553543,1746115577555,2000.0,0.00019461,2]
[359553544,1746115581760,-2000.0,0.00019461,2]
[359553545,1746115589805,-407.18495733,0.00019425,2]
[359553546,1746115589826,-1592.81504267,0.00019461,2]
[359553547,1746115644944,217.76473824,0.0003,30]
[359553548,1746115663429,-726.05495733,0.00019461,2]
[359553549,1746115663450,-273.52441603,0.00019524,2]
[359553550,1746115663481,-500.0,0.00019524,2]
[359553551,1746115663514,-95782.38070282,0.00019525,2]
[359553552,1746115663538,-200.0,0.00019525,2]
[359553553,1746115663559,-831.08,0.00019525,2]
[359553554,1746115663586,-200.0,0.00019589,2]
[359553555,1746115663606,-238.79,0.00019612,2]
[359553556,1746115663628,-306.65,0.0001962,2]
[359553557,1746115663648,-9469.43,0.00019663,2]
[359553558,1746115663670,-1249.36,0.00019692,2]
[359553559,1746115663690,-11539.0521,0.000199,2]
[359553560,1746115663712,-3112.19794791,0.000199,2]
[359553561,1746115663733,-338.87965796,0.000199,2]
[359553562,1746115663753,-500.0,0.000199,2]
[359553563,1746115663773,-581.75497009,0.000199,2]
[359553564,1746115663793,-1863.74349872,0.00019934,2]
[359553565,1746115663815,-207.4,0.00019953,2]
[359553566,1746115663836,-151.0,0.00019954,2]
[359553567,1746115663855,-279.17166787,0.00019954,2]
[359553568,1746115663875,-500.0,0.00019973,2]
[359553569,1746115663896,-14524.5538855,0.00019986,2]
[359553570,1746115663917,-1154.3987596,0.00019986,2]
[359553571,1746115663939,-2117.048,0.00019999,2]
[359553572,1746115663962,-500.0,0.00019999,2]
[359553573,1746115663983,-500.0,0.00019999,2]
[359553574,1746115664005,-543.40363503,0.00019999,2]
[359553575,1746115664028,-163810.12580114,0.0002,2]
[359553576,1746115712525,-200.0,0.00019762,2]
[359553577,1746115712565,-2038.33156758,0.000199,2]
[359553578,1746115712605,-300.0,0.00019999,2]
[359553579,1746115712635,-225.85984463,0.00019999,2]
[359553580,1746115712676,-110294.60907715,0.0002,2]
[359553581,1746115712711,-281.740845,0.0002,2]
[359553582,1746115712746,-238020.76921511,0.0002,2]
[359553583,1746115712780,-7638.68945053,0.0002,2]
[359553584,1746115733673,500.0,0.000328,60]
[359553585,1746115792404,515.12284104,0.0003287,60]
[359553589,1746115801943,150.0,0.00032867,60]
[359553594,1746115832004,-1200.0,0.00019899,2]
[359553596,1746115832015,-300.0,0.00019899,2]
[359553598,1746115832025,-300.0,0.00019899,2]
[359553601,1746115832034,-200.0,0.000199,2]
[359553602,1746115832044,-500.0,0.000199,2]
[359553606,1746115832053,-581.75497009,0.000199,2]
[359553608,1746115832063,-15202.02930111,0.000199,2]
[359553610,1746115832074,-3396.28230896,0.000199,2]
[359553612,1746115832085,-620.26925004,0.000199,2]
[359553614,1746115832096,-5023.00535554,0.000199,2]
[359553616,1746115832107,-729.7148607,0.000199,2]
[359553619,1746115832118,-586.98352101,0.000199,2]
[359553622,1746115832133,-598.30258062,0.000199,2]
[359553624,1746115832144,-24890.85032202,0.000199,2]
[359553626,1746115832154,-500.0,0.00019973,2]
[359553628,1746115832163,-500.0,0.00019973,2]
[359553630,1746115832172,-500.0,0.00019973,2]
[359553632,1746115832182,-250.0,0.00019985,2]
[359553634,1746115832191,-29544.8736786,0.00019986,2]
[359553636,1746115832202,-1754.66083723,0.00019986,2]
[359553641,1746115832232,-48525.55475441,0.00019986,2]
[359553643,1746115832243,-1911.44194956,0.00019986,2]
[359553645,1746115832254,-856.5879686,0.00019986,2]
[359553722,1746115837630,-159691.601334,0.00019986,2]
[359553723,1746115837647,-6954.9353389,0.00019986,2]
[359553724,1746115837663,-90944.0662929,0.0002,2]
[359553725,1746115837673,-433.91186718,0.0002,2]
[359553726,1746115837683,-167.53925876,0.0002,2]
[359553727,1746115837693,-155.21492,0.0002,2]
[359553728,1746115837703,-200.0,0.0002,2]
[359553729,1746115837712,-2000.0,0.0002,2]
[359553730,1746115837722,-200.0,0.0002,2]
[359553731,1746115837731,-159.0,0.0002,2]
[359553732,1746115837741,-200.0,0.00020098,2]
[359553733,1746115837750,-200.0,0.000202,2]
[359553734,1746115837760,-200.0,0.000202,2]
[359553735,1746115837771,-260.71,0.00020364,2]
[359553736,1746115837781,-200.0,0.00020402,2]
[359553737,1746115837791,-192.09798096,0.00020402,2]
[359553738,1746115837801,-250.0,0.00020508,2]
[359553739,1746115837811,-2374.97,0.00020546,2]
[359553740,1746115837820,-200.0,0.00020606,2]
[359553741,1746115837830,-300.0,0.0002061,2]
[359553742,1746115837839,-500.0,0.00020685,2]
[359553743,1746115837849,-200.0,0.0002071,2]
[359553744,1746115837859,-302.85,0.00020747,2]
[359553745,1746115837869,-304.64,0.00020747,2]
[359553746,1746115837878,-300.37,0.00020747,2]
[359553747,1746115837888,-304.69,0.00020747,2]
[359553748,1746115837897,-301.06,0.00020747,2]
[359553749,1746115837907,-303.47,0.00020747,2]
[359553750,1746115837917,-302.9,0.00020747,2]
[359553751,1746115837926,-305.38,0.00020747,2]
[359553752,1746115837936,-301.87,0.00020747,2]
[359553753,1746115837945,-300.83,0.00020747,2]
[359553754,1746115837954,-301.88,0.00020747,2]
[359553755,1746115837963,-300.52,0.00020747,2]
[359553756,1746115837973,-304.38,0.00020747,2]
[359553757,1746115837983,-302.28,0.00020747,2]
[359553758,1746115837992,-300.16,0.00020747,2]
[359553759,1746115838002,-303.07,0.00020747,2]
[359553760,1746115838012,-305.33,0.00020747,2]
[359553761,1746115838022,-304.39,0.00020747,2]
[359553763,1746115838032,-303.54,0.00020747,2]
[359553765,1746115838041,-305.12,0.00020757,2]
[359553767,1746115838051,-302.96,0.00020757,2]
[359553769,1746115838060,-304.93,0.00020757,2]
[359553771,1746115838069,-300.9,0.00020765,2]
[359553773,1746115838079,-200.0,0.0002081,2]
[359553775,1746115838089,-305.67,0.0002085,2]
[359553777,1746115838098,-300.91,0.00020899,2]
[359553778,1746115838108,-302.59,0.00020899,2]
[359553781,1746115838117,-305.74,0.00020899,2]
[359553784,1746115838127,-303.23,0.00020899,2]
[359553787,1746115838136,-303.6,0.00020899,2]
[359553789,1746115838146,-300.24,0.00020899,2]
[359553791,1746115838155,-303.61,0.00020899,2]
[359553793,1746115838165,-304.74,0.000209,2]
[359553796,1746115838175,-304.42,0.000209,2]
[359553798,1746115838184,-304.77,0.000209,2]
[359553800,1746115838197,-302.89,0.000209,2]
[359553802,1746115838207,-302.72,0.000209,2]
[359553805,1746115838216,-301.5,0.000209,2]
[359553807,1746115838225,-301.25,0.000209,2]
[359553809,1746115838235,-219.79,0.0002091,2]
[359553811,1746115838244,-303.58,0.00020933,2]
[359553814,1746115838254,-301.49,0.00020934,2]
[359553817,1746115838263,-305.69,0.00020999,2]
[359553820,1746115838273,-305.26,0.00020999,2]
[359553822,1746115838283,-305.0,0.00020999,2]
[359553824,1746115838292,-303.61,0.00020999,2]
[359553826,1746115838302,-500.0,0.00021,2]
[359553828,1746115838311,-350.0,0.00021,2]
[359553830,1746115838320,-301.24,0.00021,2]
[359553832,1746115838330,-300.42,0.00021,2]
[359553834,1746115838339,-303.35,0.00021,2]
[359553836,1746115838350,-304.6,0.00021,2]
[359553838,1746115838359,-303.66,0.00021,2]
[359553840,1746115838369,-166.66,0.00021161,2]
[359553842,1746115838378,-215.0738,0.00021322,2]
[359553844,1746115838387,-151.0,0.00021323,2]
[359553846,1746115838397,-5122.4,0.0002137,2]
[359553848,1746115838407,-158.256317,0.0002137,2]
[359553850,1746115838417,-260.71,0.00021436,2]
[359553852,1746115838427,-200.0,0.00021477,2]
[359553854,1746115838437,-250.0,0.00021477,2]
[359553856,1746115838446,-200.0,0.00021478,2]
[359553858,1746115838456,-250.0,0.00021478,2]
[359553860,1746115838465,-2038.33156753,0.00021635,2]
[359553862,1746115838474,-1000.0,0.00021644,2]
[359553864,1746115838483,-1000.0,0.00021682,2]
[359553866,1746115838493,-640.0,0.00021699,2]
[359553868,1746115838502,-95036.17844208,0.000217,2]
[359553870,1746115838511,-1680.0,0.00021774,2]
[359553872,1746115838521,-380.45176942,0.000218,2]
[359553874,1746115838531,-1465.92,0.00021832,2]
[359553876,1746115838540,-1003.9,0.00021838,2]
[359553878,1746115838549,-166.66,0.00021859,2]
[359553880,1746115838559,-200.0,0.00021889,2]
[359553882,1746115838568,-163.08,0.00021917,2]
[359553884,1746115838578,-500.0,0.00021918,2]
[359553886,1746115838587,-300.0,0.00021978,2]
[359553888,1746115838596,-2031.31663271,0.000225,2]
[359553890,1746115838605,-260.71,0.00022508,2]
[359553892,1746115838615,-166.66,0.00022558,2]
[359553894,1746115838624,-150.99,0.00022562,2]
[359553896,1746115838635,-9161.25,0.00022562,2]
[359553898,1746115838648,-416.04,0.00022562,2]
[359553900,1746115838658,-223.0315306,0.00022691,2]
[359553902,1746115838668,-151.0,0.00022692,2]
[359553904,1746115838678,-264.29366647,0.0002289,2]
[359553906,1746115838688,-405.21721074,0.000229,2]
[359553908,1746115838698,-157.47734368,0.000229,2]
[359553910,1746115838708,-235.05786864,0.000229,2]
[359553912,1746115838719,-603.5211417,0.000229,2]
[359553914,1746115838729,-212.1,0.00022999,2]
[359553916,1746115838738,-212.1,0.00022999,2]
[359553918,1746115838748,-212.1,0.00022999,2]
[359553920,1746115838758,-212.1,0.00022999,2]
[359553922,1746115838770,-212.1,0.00022999,2]
[359553924,1746115838780,-212.1,0.00022999,2]
[359553926,1746115838790,-212.1,0.00022999,2]
[359553928,1746115838800,-100000.0,0.00023,2]
[359553930,1746115838810,-400.0,0.00023,2]
[359553932,1746115838819,-9426.87985658,0.000232,2]
[359553947,1746115840464,-701.25436543,0.000232,2]
[359553948,1746115840477,-435.47178,0.000232,2]
[359553949,1746115840563,-1114.13582826,0.000232,2]
[359553950,1746115840647,-5669.31040505,0.000232,2]
[359553951,1746115840662,-3316.5507285,0.000232,2]
[359553952,1746115840671,-166.66,0.00023256,2]
[359553953,1746115840681,-163.08,0.00023287,2]
[359553954,1746115840692,-300.0,0.00023347,2]
[359553955,1746115840702,-2038.33156753,0.0002337,2]
[359553956,1746115840711,-400.0,0.00023442,2]
[359553957,1746115840721,-200.0,0.000235,2]
[359553958,1746115840731,-260.71,0.0002358,2]
[359553959,1746115840740,-406.12922371,0.00023625,2]
[359553960,1746115840752,-142.87077629,0.00023625,2]
[359553961,1746115840762,-657.021,0.00023625,2]
[359553962,1746115840772,-2070.0,0.00023625,2]
[359553963,1746115840782,-1052.242,0.00023625,2]
[359553964,1746115840791,-763.096363,0.00023625,2]
[359553969,1746115842765,-167.53925876,0.000232,2]
[359553971,1746115842775,-409.59074124,0.000232,2]
[359553972,1746115842787,-2.62553258,0.000232,2]
[359553973,1746115842796,-685.903637,0.00023625,2]
[359553974,1746115842806,-878.0,0.00023696,2]
[359553975,1746115842816,-6801.756,0.00023696,2]
[359553976,1746115842826,-4003.0,0.00023696,2]
[359553977,1746115842836,-156.096,0.00023696,2]
[359553978,1746115842846,-264.778,0.00023696,2]
[359553979,1746115842859,-883.477,0.00023696,2]
[359553980,1746115842868,-2351.0,0.00023826,2]
[359553981,1746115842878,-1150.16,0.00023836,2]
[359553982,1746115842887,-172.2035395,0.000239,2]
[359553983,1746115842897,-166.66,0.00023954,2]
[359553984,1746115842908,-3006.0,0.00023973,2]
[359553985,1746115842918,-500.0,0.00023973,2]
[359553986,1746115842928,-500.0,0.00023973,2]
[359553987,1746115842938,-500.0,0.00023973,2]
[359553988,1746115842948,-500.64631312,0.00023973,2]
[359553989,1746115842958,-453.6817798,0.00023973,2]
[359553990,1746115842970,-46.3182202,0.00023973,2]
[359553991,1746115842979,-500.0,0.00023973,2]
[359553992,1746115842989,-203.223386,0.00023973,2]
[359553993,1746115843126,-296.776614,0.00023973,2]
[359553994,1746115843136,-500.68481339,0.00023973,2]
[359553995,1746115843145,-500.0,0.00023973,2]
[359553996,1746115843155,-342.88104399,0.00023973,2]
[359553997,1746115843171,-157.11895601,0.00023973,2]
[359553998,1746115843181,-296.478012,0.00023999,7]
[359553999,1746115843191,-212.13,0.00023999,2]
[359554000,1746115843200,-212.13,0.00023999,2]
[359554001,1746115843210,-1121.61349679,0.00023999,2]
[359554002,1746115843219,-3473.27013643,0.00024,14]
[359554008,1746115845727,-391.60546013,0.00023999,2]
[359554009,1746115845737,-179.81427555,0.00024,14]
[359554010,1746115845884,-2043.65232186,0.00024,14]
[359554011,1746115845896,-2048.74931896,0.00024,14]
[359554012,1746115845906,-36614.36122397,0.00024,2]
[359554013,1746115845915,-985.65582656,0.00024,2]
[359554014,1746115845925,-58230.62864761,0.00024,2]
[359554015,1746115845934,-151.0,0.00024,7]
[359554016,1746115845944,-231.28369723,0.0002406,2]
[359554017,1746115845953,-151.0,0.00024061,2]
[359554018,1746115845963,-1000.0,0.00024091,2]
[359554019,1746115845973,-1465.92,0.00024096,2]
[359554020,1746115845982,-640.0,0.0002411,2]
[359554021,1746115845992,-407.3691653,0.0002421,2]
[359554022,1746115846001,-3569.31157824,0.0002421,2]
[359554023,1746115846011,-1003.9,0.00024265,2]
[359554024,1746115846020,-159.0,0.00024608,2]
[359554025,1746115846032,-265.74835313,0.00024608,2]
[359554026,1746115846042,-260.71,0.00024651,2]
[359554027,1746115846051,-166.66,0.00024653,2]
[359554028,1746115846061,-163.08,0.00024657,2]
[359554029,1746115846070,-500.0,0.00024658,2]
[359554030,1746115846079,-428.0,0.00024658,2]
[359554031,1746115846088,-500.0,0.00024658,2]
[359554032,1746115846099,-1000.0,0.00024658,2]
[359554033,1746115846108,-646.0,0.0002474,2]
[359554034,1746115846117,-1646.329189,0.0002474,2]
[359554056,1746115847143,-4714.27338339,0.0002474,2]
[359554057,1746115847204,-904.44999998,0.0002474,2]
[359554058,1746115847220,-4075.94742763,0.0002474,2]
[359554059,1746115847233,-5697.0,0.00024767,2]
[359554060,1746115847245,-474.51724359,0.00024773,2]
[359554061,1746115847259,-500.0,0.00024773,2]
[359554062,1746115847273,-508.9980583,0.00024773,2]
[359554063,1746115847286,-500.0,0.00024773,2]
[359554064,1746115847300,-500.0,0.00024773,2]
[359554065,1746115847313,-501.06029694,0.00024773,2]
[359554066,1746115847327,-511.2749024,0.00024773,2]
[359554067,1746115847340,-500.0,0.00024773,2]
[359554068,1746115847352,-212.13,0.00024799,2]
[359554069,1746115847363,-630088.33794,0.000248,2]
[359554070,1746115847373,-151.0,0.000248,7]
[359554071,1746115847382,-151.0,0.000248,7]
[359554072,1746115847392,-500.0,0.00024873,2]
[359554073,1746115847401,-501.61179285,0.00024873,2]
[359554074,1746115847411,-500.0,0.00024873,2]
[359554075,1746115847421,-500.0,0.00024873,2]
[359554076,1746115847430,-214.88975929,0.00024873,2]
[359554077,1746115847440,-500.0,0.00024873,2]
[359554078,1746115847449,-500.0,0.00024873,2]
[359554079,1746115847459,-500.0,0.00024899,2]
[359554080,1746115847469,-300.0,0.00024899,10]
[359554081,1746115847480,-500.0,0.00024899,2]
[359554082,1746115847490,-163067.5669063,0.000249,2]
[359554083,1746116065291,217.98155148,0.00032,120]
[359554084,1746116089376,1660.53000969,0.000328,60]
[359554085,1746116100703,250.0,0.00017,2]
[359554086,1746116101807,300.0,0.00019,2]
[359554087,1746116134394,500.0,0.0003287,60]
[359554088,1746116523196,201.54,0.00027425,30]
[359554091,1746116818891,3129.81290298,0.00015,14]
[359554093,1746116874266,9732.00246062,0.00013,15]
[359554094,1746116874291,11058.66375187,0.00013,15]
[359554095,1746116890228,20106.39390422,0.0002,14]
[359554096,1746116905687,1240.4998732,0.00015146,15]
[359554097,1746116916126,496.32,0.00032876,60]
[359554098,1746116919402,469.999999,0.000151,2]
[359554101,1746116975038,874.9747373,4.3e-05,2]
[359554102,1746116984052,360.0,0.0003,30]
[359554106,1746117031751,-203.59247867,0.00019649,2]
[359554107,1746117031761,-135.58664579,0.00019749,2]
[359554108,1746117031773,-1063.44509394,0.00019749,2]
[359554109,1746117031872,-0.96826027,0.00019749,2]
[359554110,1746117031882,-159.0,0.00019749,2]
[359554111,1746117031892,-196.90405943,0.0001975,2]
[359554112,1746117032033,-2826.58771987,0.0001975,2]
[359554113,1746117032044,-949.65489712,0.0001975,2]
[359554114,1746117032057,-2729.8716691,0.0001975,2]
[359554135,1746117037838,-8822.01209158,0.0001975,2]
[359554136,1746117037851,-847.8665811,0.0001975,2]
[359554231,1746117039948,-597.7676,0.0001975,2]
[359554232,1746117040104,-5015.92015998,0.0001975,2]
[359554233,1746117040161,-5432.81606621,0.0001975,2]
[359554234,1746117040215,-485.20155435,0.0001975,2]
[359554235,1746117040226,-58037.82211784,0.0001975,2]
[359554236,1746117040236,-203.59247866,0.00019786,2]
[359554237,1746117040248,-2933.37849986,0.000198,2]
[359554238,1746117040258,-500.0,0.00019886,2]
[359554239,1746117040267,-11251.07149209,0.000199,2]
[359554240,1746117040307,-1000.0,0.000199,2]
[359554241,1746117040318,-5020.83828484,0.000199,2]